[Event "Allsvenskan Div I 3 2022/2023: SS Manhem - SK Kamraterna II"]
[Site "Schackcentrum, Vegatan 20, Gothenburg, Sweden"]
[Date "2023.02.05"]
[Round "1.5"]
[White "Svensson, Leif"]
[Black "Lundstrom, Mattias"]
[Result "1-0"]
[TimeControl "90 minutes for 40 moves + 30 minutes for the rest of the game + 30 seconds per move from move one."]
[WhiteFideId "1702459"]
[BlackFideId "1703536"]
[WhiteElo "2022"]
[BlackElo "2131"]

1. d4 {[%clk 01:30:58]} {[%emt 00:00:02]} d5 {[%clk 01:30:54]} {[%emt
00:00:06]} 2. Nc3 {[%clk 01:31:22]} {[%emt 00:00:05]} Nf6 {[%clk 01:30:18]}
{[%emt 00:01:07]} 3. Bf4 {[%clk 01:31:37]} {[%emt 00:00:14]} Bf5 {[%clk
01:29:46]} {[%emt 00:01:02]} 4. e3 {[%clk 01:31:44]} {[%emt 00:00:23]} e6
{[%clk 01:30:07]} {[%emt 00:00:10]} 5. f3 {[%clk 01:32:03]} {[%emt 00:00:11]}
c5 {[%clk 01:29:36]} {[%emt 00:01:03]} 6. Nb5 {[%clk 01:27:42]} {[%emt
00:04:48]} Na6 {[%clk 01:29:16]} {[%emt 00:00:51]} 7. c3 {[%clk 01:28:00]}
{[%emt 00:00:11]} Be7 {[%clk 01:29:08]} {[%emt 00:00:38]} 8. g4 {[%clk
01:26:26]} {[%emt 00:02:04]} Bg6 {[%clk 01:29:08]} {[%emt 00:00:29]} 9. h4
{[%clk 01:26:45]} {[%emt 00:00:12]} h5 {[%clk 01:27:36]} {[%emt 00:02:02]} 10.
g5 {[%clk 01:27:10]} {[%emt 00:00:06]} Nd7 {[%clk 01:28:00]} {[%emt 00:00:06]}
11. Bd3 {[%clk 01:27:16]} {[%emt 00:00:24]} Bxd3 {[%clk 01:28:01]} {[%emt
00:00:28]} 12. Qxd3 {[%clk 01:27:39]} {[%emt 00:00:07]} Qb6 {[%clk 01:26:28]}
{[%emt 00:02:03]} 13. a4 {[%clk 01:27:49]} {[%emt 00:00:20]} cxd4 {[%clk
01:22:10]} {[%emt 00:04:49]} 14. exd4 {[%clk 01:27:48]} {[%emt 00:00:31]} g6
{[%clk 01:20:38]} {[%emt 00:02:01]} 15. Ne2 {[%clk 01:27:55]} {[%emt 00:00:22]}
O-O {[%clk 01:20:46]} {[%emt 00:00:23]} 16. Bg3 {[%clk 01:22:08]} {[%emt
00:06:16]} Rfe8 {[%clk 01:13:08]} {[%emt 00:08:09]} 17. Nf4 {[%clk 01:16:21]}
{[%emt 00:06:17]} Bd6 {[%clk 01:09:44]} {[%emt 00:03:54]} 18. Nxd6 {[%clk
01:12:34]} {[%emt 00:04:17]} Qxd6 {[%clk 01:10:06]} {[%emt 00:00:08]} 19. O-O
{[%clk 01:11:00]} {[%emt 00:02:04]} e5 {[%clk 01:08:05]} {[%emt 00:02:30]} 20.
dxe5 {[%clk 01:10:53]} {[%emt 00:00:38]} Nxe5 {[%clk 01:07:36]} {[%emt
00:00:59]} 21. Qxd5 {[%clk 01:09:55]} {[%emt 00:01:28]} Qb6+ {[%clk 01:05:01]}
{[%emt 00:03:06]} 22. Qd4 {[%clk 01:09:10]} {[%emt 00:01:13]} Qxb2 {[%clk
01:02:31]} {[%emt 00:03:01]} 23. Rae1 {[%clk 01:07:56]} {[%emt 00:01:43]} Nc6
{[%clk 00:59:12]} {[%emt 00:03:50]} 24. Qf6 {[%clk 01:07:29]} {[%emt 00:00:55]}
Rxe1 {[%clk 00:54:36]} {[%emt 00:05:08]} 25. Rxe1 {[%clk 01:07:52]} {[%emt
00:00:07]} Qb6+ {[%clk 00:55:02]} {[%emt 00:00:04]} 26. Bf2 {[%clk 00:49:05]}
{[%emt 00:19:17]} Qd8 {[%clk 00:54:16]} {[%emt 00:01:16]} 27. Qxd8+ {[%clk
00:33:40]} {[%emt 00:15:56]} Rxd8 {[%clk 00:54:39]} {[%emt 00:00:07]} 28. c4
{[%clk 00:33:47]} {[%emt 00:00:22]} Nab4 {[%clk 00:53:54]} {[%emt 00:01:15]} 29.
Rb1 {[%clk 00:32:00]} {[%emt 00:02:17]} b6 {[%clk 00:42:05]} {[%emt 00:12:20]}
30. c5 {[%clk 00:30:53]} {[%emt 00:01:41]} bxc5 {[%clk 00:42:26]} {[%emt
00:00:04]} 31. Bxc5 {[%clk 00:31:06]} {[%emt 00:00:17]} Nd3 {[%clk 00:42:38]}
{[%emt 00:00:18]} 32. Nxd3 {[%clk 00:28:44]} {[%emt 00:02:52]} Rxd3 {[%clk
00:42:53]} {[%emt 00:00:15]} 33. Kf2 {[%clk 00:20:15]} {[%emt 00:09:00]} Rc3
{[%clk 00:41:30]} {[%emt 00:01:53]} 34. Bd6 {[%clk 00:19:55]} {[%emt 00:00:49]}
Rd3 {[%clk 00:32:33]} {[%emt 00:09:28]} 35. Bc5 {[%clk 00:20:16]} {[%emt
00:00:09]} Rc3 {[%clk 00:26:59]} {[%emt 00:06:03]} 36. Bd6 {[%clk 00:20:16]}
{[%emt 00:00:29]} f6 {[%clk 00:26:23]} {[%emt 00:01:07]} 37. gxf6 {[%clk
00:15:01]} {[%emt 00:05:45]} Kf7 {[%clk 00:26:34]} {[%emt 00:00:19]} 38. Rb7+
{[%clk 00:09:31]} {[%emt 00:06:00]} Kxf6 {[%clk 00:26:53]} {[%emt 00:00:11]} 39.
Bf8 {[%clk 00:09:50]} {[%emt 00:00:11]} Ke6 {[%clk 00:25:37]} {[%emt 00:01:45]}
40. Rg7 {[%clk 00:08:50]} {[%emt 00:01:30]} Ne5 {[%clk 00:25:34]} {[%emt
00:00:33]} 41. Re7+ {[%clk 00:08:54]} {[%emt 00:00:27]} Kd5 {[%clk 00:25:21]}
{[%emt 00:00:43]} 42. Rxe5+ {[%clk 00:09:13]} {[%emt 00:00:12]} 1-0

[Event "Allsvenskan Div I 3 2022/2023: SS Manhem - SK Kamraterna II"]
[Site "Schackcentrum, Vegatan 20, Gothenburg, Sweden"]
[Date "2023.02.05"]
[Round "1.6"]
[White "Bengtsson, Jessica"]
[Black "Svedberg, Hans"]
[Result "0-1"]
[TimeControl "90 minutes for 40 moves + 30 minutes for the rest of the game + 30 seconds per move from move one."]
[WhiteTitle "WFM"]
[WhiteFideId "1711083"]
[BlackFideId "1705113"]
[WhiteElo "2057"]
[BlackElo "2016"]

1. e4 {[%clk 01:30:57]} {[%emt 00:00:03]} c5 {[%clk 01:30:38]} {[%emt
00:00:22]} 2. c3 {[%clk 01:31:14]} {[%emt 00:00:13]} Nf6 {[%clk 01:29:44]}
{[%emt 00:01:24]} 3. e5 {[%clk 01:31:39]} {[%emt 00:00:06]} Nd5 {[%clk
01:29:58]} {[%emt 00:00:16]} 4. d4 {[%clk 01:32:02]} {[%emt 00:00:07]} cxd4
{[%clk 01:27:52]} {[%emt 00:02:36]} 5. Nf3 {[%clk 01:32:25]} {[%emt 00:00:06]}
e6 {[%clk 01:27:06]} {[%emt 00:01:17]} 6. cxd4 {[%clk 01:32:44]} {[%emt
00:00:11]} Nc6 {[%clk 01:25:53]} {[%emt 00:01:43]} 7. Bc4 {[%clk 01:31:01]}
{[%emt 00:02:12]} Nb6 {[%clk 01:23:02]} {[%emt 00:03:22]} 8. Bb3 {[%clk
01:30:31]} {[%emt 00:01:00]} d6 {[%clk 01:18:02]} {[%emt 00:05:29]} 9. O-O
{[%clk 01:27:37]} {[%emt 00:03:24]} Be7 {[%clk 00:56:20]} {[%emt 00:22:12]} 10.
Nc3 {[%clk 01:25:59]} {[%emt 00:02:08]} O-O {[%clk 00:52:02]} {[%emt 00:04:48]}
11. Qe2 {[%clk 01:22:17]} {[%emt 00:04:12]} Bd7 {[%clk 00:35:44]} {[%emt
00:16:49]} 12. Bc2 {[%clk 01:11:21]} {[%emt 00:11:25]} Nb4 {[%clk 00:29:38]}
{[%emt 00:06:36]} 13. Bb1 {[%clk 01:07:36]} {[%emt 00:04:15]} Bc6 {[%clk
00:25:35]} {[%emt 00:04:33]} 14. a3 {[%clk 01:06:20]} {[%emt 00:01:45]} Bxf3
{[%clk 00:24:49]} {[%emt 00:01:17]} 15. Qxf3 {[%clk 01:06:07]} {[%emt
00:00:43]} N4d5 {[%clk 00:24:27]} {[%emt 00:00:53]} 16. Qh3 {[%clk 01:00:46]}
{[%emt 00:05:49]} g6 {[%clk 00:24:05]} {[%emt 00:00:54]} 17. f4 {[%clk
00:48:09]} {[%emt 00:13:07]} Rc8 {[%clk 00:18:00]} {[%emt 00:06:35]} 18. Ne4
{[%clk 00:44:53]} {[%emt 00:03:44]} Rxc1 {[%clk 00:12:57]} {[%emt 00:05:35]} 19.
Rxc1 {[%clk 00:44:57]} {[%emt 00:00:25]} Nxf4 {[%clk 00:13:12]} {[%emt
00:00:15]} 20. Qe3 {[%clk 00:36:20]} {[%emt 00:09:06]} Nbd5 {[%clk 00:12:39]}
{[%emt 00:01:05]} 21. Qd2 {[%clk 00:28:25]} {[%emt 00:08:24]} dxe5 {[%clk
00:11:09]} {[%emt 00:02:01]} 22. dxe5 {[%clk 00:28:15]} {[%emt 00:00:40]} Qb6+
{[%clk 00:10:03]} {[%emt 00:01:36]} 23. Kh1 {[%clk 00:27:59]} {[%emt 00:00:44]}
Rd8 {[%clk 00:07:49]} {[%emt 00:02:44]} 24. Qf2 {[%clk 00:27:07]} {[%emt
00:01:22]} Qb3 {[%clk 00:06:34]} {[%emt 00:01:46]} 25. Ba2 {[%clk 00:23:48]}
{[%emt 00:03:49]} Qa4 {[%clk 00:03:59]} {[%emt 00:03:05]} 26. Bxd5 {[%clk
00:21:40]} {[%emt 00:02:38]} Nxd5 {[%clk 00:03:20]} {[%emt 00:01:09]} 27. Nf6+
{[%clk 00:17:14]} {[%emt 00:04:56]} Kg7 {[%clk 00:03:13]} {[%emt 00:00:37]} 28.
Rf1 {[%clk 00:16:20]} {[%emt 00:01:24]} Bxf6 {[%clk 00:02:30]} {[%emt
00:01:14]} 29. exf6+ {[%clk 00:16:46]} {[%emt 00:00:04]} Kh8 {[%clk 00:02:25]}
{[%emt 00:00:34]} 30. Rad1 {[%clk 00:16:13]} {[%emt 00:01:03]} Rg8 {[%clk
00:02:15]} {[%emt 00:00:41]} 31. Rd4 {[%clk 00:14:58]} {[%emt 00:01:44]} Qb5
{[%clk 00:02:09]} {[%emt 00:00:37]} 32. Rfd1 {[%clk 00:14:30]} {[%emt
00:00:57]} h6 {[%clk 00:02:07]} {[%emt 00:00:33]} 33. Rh4 {[%clk 00:13:37]}
{[%emt 00:01:22]} h5 {[%clk 00:02:05]} {[%emt 00:00:32]} 34. Qf3 {[%clk
00:11:18]} {[%emt 00:02:49]} Nb6 {[%clk 00:00:59]} {[%emt 00:01:36]} 35. b4
{[%clk 00:05:10]} {[%emt 00:06:38]} Qe5 {[%clk 00:01:00]} {[%emt 00:00:28]} 36.
Qf4 {[%clk 00:03:01]} {[%emt 00:02:40]} Qxf4 {[%clk 00:01:03]} {[%emt
00:00:28]} 37. Rxf4 {[%clk 00:03:30]} {[%emt 00:00:01]} g5 {[%clk 00:01:08]}
{[%emt 00:00:25]} 38. Rf2 {[%clk 00:03:10]} {[%emt 00:00:49]} Kh7 {[%clk
00:01:22]} {[%emt 00:00:17]} 39. h3 {[%clk 00:01:35]} {[%emt 00:02:04]} Kg6
{[%clk 00:01:44]} {[%emt 00:00:09]} 40. Rd6 {[%clk 00:00:50]} {[%emt 00:01:14]}
Rc8 {[%clk 00:01:28]} {[%emt 00:00:46]} 41. Kh2 {[%clk 00:27:30]} {[%emt
00:03:50]} h4 {[%clk 00:29:34]} {[%emt 00:02:25]} 42. Rf3 {[%clk 00:24:47]}
{[%emt 00:03:12]} Nd5 {[%clk 00:25:55]} {[%emt 00:04:09]} 43. Rd7 {[%clk
00:21:14]} {[%emt 00:04:03]} Rb8 {[%clk 00:17:19]} {[%emt 00:09:06]} 44. Kg1
{[%clk 00:16:37]} {[%emt 00:05:07]} Nf4 {[%clk 00:16:04]} {[%emt 00:01:45]} 45.
Kf2 {[%clk 00:13:21]} {[%emt 00:03:45]} Kxf6 {[%clk 00:11:02]} {[%emt
00:05:34]} 46. g3 {[%clk 00:09:58]} {[%emt 00:03:53]} hxg3+ {[%clk 00:10:19]}
{[%emt 00:01:13]} 47. Kxg3 {[%clk 00:10:19]} {[%emt 00:00:08]} e5 {[%clk
00:07:26]} {[%emt 00:03:23]} 48. Kf2 {[%clk 00:07:02]} {[%emt 00:03:47]} Ke6
{[%clk 00:07:22]} {[%emt 00:00:35]} 49. Rc7 {[%clk 00:06:53]} {[%emt 00:00:38]}
f5 {[%clk 00:06:09]} {[%emt 00:01:44]} 50. Rfc3 {[%clk 00:04:17]} {[%emt
00:03:05]} e4 {[%clk 00:03:57]} {[%emt 00:02:42]} 51. Rg7 {[%clk 00:03:41]}
{[%emt 00:01:06]} Kf6 {[%clk 00:03:56]} {[%emt 00:00:32]} 52. Rh7 {[%clk
00:03:18]} {[%emt 00:00:52]} Ne6 {[%clk 00:04:07]} {[%emt 00:00:19]} 53. h4
{[%clk 00:03:19]} {[%emt 00:00:30]} g4 {[%clk 00:04:14]} {[%emt 00:00:22]} 54.
Rc4 {[%clk 00:03:05]} {[%emt 00:00:44]} Ke5 {[%clk 00:03:30]} {[%emt 00:01:14]}
55. h5 {[%clk 00:02:58]} {[%emt 00:00:37]} f4 {[%clk 00:03:21]} {[%emt
00:00:39]} 56. h6 {[%clk 00:02:43]} {[%emt 00:00:46]} g3+ {[%clk 00:02:43]}
{[%emt 00:01:09]} 57. Kg2 {[%clk 00:02:36]} {[%emt 00:00:35]} Rg8 {[%clk
00:02:28]} {[%emt 00:00:46]} 58. Rxb7 {[%clk 00:00:40]} {[%emt 00:02:26]} f3+
{[%clk 00:02:45]} {[%emt 00:00:12]} 59. Kg1 {[%clk 00:00:54]} {[%emt 00:00:16]}
f2+ {[%clk 00:02:02]} {[%emt 00:01:14]} 60. Kg2 {[%clk 00:00:39]} {[%emt
00:00:45]} Nf4+ {[%clk 00:02:16]} 0-1

[Event "Allsvenskan Div I 3 2022/2023: SS Manhem - SK Kamraterna II"]
[Site "Schackcentrum, Vegatan 20, Gothenburg, Sweden"]
[Date "2023.02.05"]
[Round "1.7"]
[White "Axelsson, Uno"]
[Black "Berggren Torell, Harald"]
[Result "1/2-1/2"]
[TimeControl "90 minutes for 40 moves + 30 minutes for the rest of the game + 30 seconds per move from move one."]
[WhiteFideId "1710249"]
[BlackFideId "1714031"]
[WhiteElo "1983"]
[BlackElo "2103"]

1. d4 {[%clk 01:30:50]} {[%emt 00:00:09]} d6 {[%clk 01:30:14]} {[%emt
00:00:47]} 2. Nf3 {[%clk 01:27:13]} {[%emt 00:04:08]} g6 {[%clk 01:30:37]}
{[%emt 00:00:07]} 3. Bg5 {[%clk 01:26:01]} {[%emt 00:01:41]} Bg7 {[%clk
01:29:13]} {[%emt 00:01:55]} 4. e3 {[%clk 01:24:49]} {[%emt 00:01:41]} c5
{[%clk 01:24:01]} {[%emt 00:05:42]} 5. c3 {[%clk 01:18:41]} {[%emt 00:06:38]}
h6 {[%clk 01:17:52]} {[%emt 00:06:40]} 6. Bf4 {[%clk 01:18:25]} {[%emt
00:00:45]} Qb6 {[%clk 01:12:22]} {[%emt 00:05:59]} 7. Qb3 {[%clk 01:11:49]}
{[%emt 00:07:06]} Qxb3 {[%clk 00:57:51]} {[%emt 00:15:02]} 8. axb3 {[%clk
01:12:07]} {[%emt 00:00:11]} cxd4 {[%clk 00:58:16]} {[%emt 00:00:04]} 9. exd4
{[%clk 01:12:02]} {[%emt 00:00:35]} Nd7 {[%clk 00:49:07]} {[%emt 00:09:40]} 10.
Bb5 {[%clk 01:10:35]} {[%emt 00:01:58]} Ngf6 {[%clk 00:41:20]} {[%emt
00:08:17]} 11. O-O {[%clk 01:08:59]} {[%emt 00:02:05]} a6 {[%clk 00:35:46]}
{[%emt 00:06:05]} 12. Re1 {[%clk 01:08:58]} {[%emt 00:00:31]} Kd8 {[%clk
00:35:37]} {[%emt 00:00:39]} 13. Nbd2 {[%clk 01:03:37]} {[%emt 00:05:50]} Nb6
{[%clk 00:28:30]} {[%emt 00:07:37]} 14. Bf1 {[%clk 01:02:45]} {[%emt 00:01:23]}
Nbd5 {[%clk 00:25:18]} {[%emt 00:03:42]} 15. Bg3 {[%clk 01:02:36]} {[%emt
00:00:39]} Nh5 {[%clk 00:23:53]} {[%emt 00:01:56]} 16. Bc4 {[%clk 00:59:23]}
{[%emt 00:03:42]} Be6 {[%clk 00:22:57]} {[%emt 00:01:27]} 17. Ra5 {[%clk
00:58:36]} {[%emt 00:01:16]} Nc7 {[%clk 00:17:46]} {[%emt 00:05:40]} 18. b4
{[%clk 00:46:49]} {[%emt 00:12:17]} Nxg3 {[%clk 00:16:35]} {[%emt 00:01:43]} 19.
hxg3 {[%clk 00:45:47]} {[%emt 00:01:31]} Rc8 {[%clk 00:10:00]} {[%emt
00:07:05]} 20. Bxe6 {[%clk 00:43:01]} {[%emt 00:03:16]} Nxe6 {[%clk 00:08:23]}
{[%emt 00:02:07]} 21. b5 {[%clk 00:42:17]} {[%emt 00:01:14]} Nc7 {[%clk
00:08:18]} {[%emt 00:00:35]} 22. bxa6 {[%clk 00:41:54]} {[%emt 00:00:52]} bxa6
{[%clk 00:08:45]} {[%emt 00:00:04]} 23. Rea1 {[%clk 00:37:43]} {[%emt
00:04:41]} Rb8 {[%clk 00:07:53]} {[%emt 00:01:22]} 24. R1a2 {[%clk 00:37:31]}
{[%emt 00:00:42]} Rb5 {[%clk 00:02:50]} {[%emt 00:05:33]} 25. Ne1 {[%clk
00:34:06]} {[%emt 00:03:55]} Kd7 {[%clk 00:02:38]} {[%emt 00:00:42]} 26. Rxb5
{[%clk 00:33:39]} {[%emt 00:00:56]} axb5 {[%clk 00:02:34]} {[%emt 00:00:35]} 27.
Nd3 {[%clk 00:33:59]} {[%emt 00:00:09]} Kc6 {[%clk 00:01:45]} {[%emt 00:01:20]}
28. Nb4+ {[%clk 00:32:43]} {[%emt 00:01:46]} Kb6 {[%clk 00:01:58]} {[%emt
00:00:17]} 29. Kf1 {[%clk 00:31:58]} {[%emt 00:01:14]} Rb8 {[%clk 00:01:30]}
{[%emt 00:00:58]} 30. Ke2 {[%clk 00:31:32]} {[%emt 00:00:57]} e6 {[%clk
00:01:06]} {[%emt 00:00:55]} 31. Ne4 {[%clk 00:31:05]} {[%emt 00:00:55]} Bf8
{[%clk 00:01:33]} {[%emt 00:00:04]} 32. Kd3 {[%clk 00:27:37]} {[%emt 00:03:58]}
d5 {[%clk 00:01:33]} {[%emt 00:00:30]} 33. Nf6 {[%clk 00:27:26]} {[%emt
00:00:41]} Rd8 {[%clk 00:02:02]} {[%emt 00:00:01]} 34. Nc2 {[%clk 00:26:52]}
{[%emt 00:01:01]} h5 {[%clk 00:02:11]} {[%emt 00:00:25]} 35. g4 {[%clk
00:27:14]} {[%emt 00:00:07]} Be7 {[%clk 00:01:29]} {[%emt 00:01:12]} 36. g5
{[%clk 00:27:12]} {[%emt 00:00:32]} Bxf6 {[%clk 00:01:00]} {[%emt 00:00:59]} 37.
gxf6 {[%clk 00:27:30]} {[%emt 00:00:11]} Ne8 {[%clk 00:00:54]} {[%emt
00:00:36]} 38. Nb4 {[%clk 00:27:48]} {[%emt 00:00:12]} Rb8 {[%clk 00:00:42]}
{[%emt 00:00:43]} 39. Ra6+ {[%clk 00:27:42]} {[%emt 00:00:35]} Kc7 {[%clk
00:00:47]} {[%emt 00:00:26]} 40. Ra1 {[%clk 00:24:19]} {[%emt 00:03:52]} Rb7
{[%clk 00:00:48]} {[%emt 00:00:30]} 41. Na6+ {[%clk 00:23:59]} {[%emt
00:00:50]} Kb6 {[%clk 00:00:40]} {[%emt 00:00:38]} 42. Nc5 {[%clk 00:24:18]}
{[%emt 00:00:10]} Ra7 {[%clk 00:26:16]} {[%emt 00:04:55]} 1/2-1/2

[Event "Allsvenskan Div I 3 2022/2023: SS Manhem - SK Kamraterna II"]
[Site "Schackcentrum, Vegatan 20, Gothenburg, Sweden"]
[Date "2023.02.05"]
[Round "1.8"]
[White "Bengtsson, Jonas"]
[Black "Westerlund, Ola"]
[Result "1-0"]
[TimeControl "90 minutes for 40 moves + 30 minutes for the rest of the game + 30 seconds per move from move one."]
[WhiteFideId "1715135"]
[BlackFideId "1712101"]
[WhiteElo "2039"]
[BlackElo "1867"]

1. d4 {[%clk 01:30:57]} {[%emt 00:00:03]} g6 {[%clk 01:30:39]} {[%emt
00:00:21]} 2. c4 {[%clk 01:31:15]} {[%emt 00:00:12]} Nf6 {[%clk 01:31:02]}
{[%emt 00:00:07]} 3. Nc3 {[%clk 01:31:38]} {[%emt 00:00:07]} Bg7 {[%clk
01:31:27]} {[%emt 00:00:05]} 4. e4 {[%clk 01:32:03]} {[%emt 00:00:04]} d6
{[%clk 01:31:53]} {[%emt 00:00:05]} 5. Nf3 {[%clk 01:32:27]} {[%emt 00:00:05]}
O-O {[%clk 01:32:15]} {[%emt 00:00:09]} 6. Be2 {[%clk 01:32:52]} {[%emt
00:00:04]} Nbd7 {[%clk 01:32:34]} {[%emt 00:00:12]} 7. O-O {[%clk 01:33:13]}
{[%emt 00:00:08]} e5 {[%clk 01:33:01]} {[%emt 00:00:03]} 8. Re1 {[%clk
01:33:34]} {[%emt 00:00:09]} Re8 {[%clk 01:32:50]} {[%emt 00:00:41]} 9. d5
{[%clk 01:31:24]} {[%emt 00:02:41]} a5 {[%clk 01:32:11]} {[%emt 00:01:09]} 10.
Bg5 {[%clk 01:28:53]} {[%emt 00:03:01]} h6 {[%clk 01:30:25]} {[%emt 00:02:16]}
11. Bh4 {[%clk 01:29:16]} {[%emt 00:00:07]} g5 {[%clk 01:21:34]} {[%emt
00:09:21]} 12. Bg3 {[%clk 01:29:05]} {[%emt 00:00:41]} Nh5 {[%clk 01:21:58]}
{[%emt 00:00:06]} 13. a3 {[%clk 01:16:24]} {[%emt 00:13:11]} Nf4 {[%clk
00:34:26]} {[%emt 00:48:02]} 14. Rb1 {[%clk 00:49:26]} {[%emt 00:27:28]} Nc5
{[%clk 00:27:29]} {[%emt 00:07:28]} 15. b4 {[%clk 00:48:25]} {[%emt 00:01:30]}
axb4 {[%clk 00:27:45]} {[%emt 00:00:14]} 16. axb4 {[%clk 00:48:50]} {[%emt
00:00:05]} Nxe2+ {[%clk 00:28:00]} {[%emt 00:00:16]} 17. Rxe2 {[%clk 00:48:41]}
{[%emt 00:00:38]} Nxe4 {[%clk 00:27:29]} {[%emt 00:01:01]} 18. Nxe4 {[%clk
00:47:36]} {[%emt 00:01:35]} f5 {[%clk 00:27:55]} {[%emt 00:00:04]} 19. Nfd2
{[%clk 00:45:05]} {[%emt 00:03:00]} fxe4 {[%clk 00:23:47]} {[%emt 00:04:38]} 20.
Nxe4 {[%clk 00:45:22]} {[%emt 00:00:14]} Bf5 {[%clk 00:23:58]} {[%emt
00:00:18]} 21. c5 {[%clk 00:42:08]} {[%emt 00:03:44]} Ra3 {[%clk 00:08:27]}
{[%emt 00:16:02]} 22. Re1 {[%clk 00:36:16]} {[%emt 00:06:22]} Qe7 {[%clk
00:07:00]} {[%emt 00:01:58]} 23. Rc1 {[%clk 00:31:39]} {[%emt 00:05:05]} Rea8
{[%clk 00:06:19]} {[%emt 00:01:12]} 24. f3 {[%clk 00:29:19]} {[%emt 00:02:50]}
h5 {[%clk 00:05:11]} {[%emt 00:01:38]} 25. Bf2 {[%clk 00:20:51]} {[%emt
00:08:57]} g4 {[%clk 00:05:10]} {[%emt 00:00:31]} 26. fxg4 {[%clk 00:20:22]}
{[%emt 00:00:59]} Bxg4 {[%clk 00:04:09]} {[%emt 00:01:32]} 27. cxd6 {[%clk
00:17:15]} {[%emt 00:03:37]} cxd6 {[%clk 00:04:22]} {[%emt 00:00:17]} 28. Qd2
{[%clk 00:15:17]} {[%emt 00:02:28]} Ra2 {[%clk 00:04:15]} {[%emt 00:00:37]} 29.
Qe3 {[%clk 00:15:01]} {[%emt 00:00:45]} Qd8 {[%clk 00:01:00]} {[%emt 00:03:46]}
30. Qb6 {[%clk 00:07:41]} {[%emt 00:07:50]} Rb2 {[%clk 00:00:50]} {[%emt
00:00:40]} 31. Rc7 {[%clk 00:06:05]} {[%emt 00:02:06]} Bf8 {[%clk 00:00:37]}
{[%emt 00:00:43]} 32. Qxb7 {[%clk 00:04:54]} {[%emt 00:01:40]} Rc8 {[%clk
00:00:33]} {[%emt 00:00:35]} 33. Rh7 {[%clk 00:04:19]} {[%emt 00:01:05]} Bd7
{[%clk 00:00:17]} 1-0